fUST/lending_fUST_20250828
["ID","MTS","AMOUNT","RATE_DAILY","PERIOD"]
[381695778,1756313463592,-1159.67,0.00022739,2]
[381695779,1756313463602,-500.0,0.00022773,2]
[381695780,1756313463611,-160.0,0.00022775,2]
[381695781,1756313463621,-2000.8897389,0.000228,5]
[381695782,1756313463630,-49689.8,0.000228,7]
[381695783,1756313463641,-4110.38,0.000228,7]
[381695784,1756313463651,-151.0,0.000228,7]
[381695785,1756313463661,-417.15472785,0.000228,7]
[381695786,1756313463670,-425.44119842,0.000228,7]
[381695787,1756313463680,-10219.21105672,0.0002282,2]
[381695788,1756313463689,-151.0,0.0002282,7]
[381695789,1756313463699,-4000.0,0.00022845,2]
[381695790,1756313463709,-500.0,0.00022975,2]
[381695791,1756313463718,-151.0,0.00022975,2]
[381695792,1756313463727,-151.0,0.00022975,2]
[381695793,1756313463737,-500.0,0.00022975,2]
[381695794,1756313463746,-500.0,0.00022975,2]
[381695795,1756313463755,-199.32256392,0.00022975,2]
[381695796,1756313463765,-229.37048483,0.00022975,2]
[381695797,1756313463774,-212.55999886,0.00022975,2]
[381695798,1756313463784,-199.81864004,0.00022975,2]
[381695799,1756313463793,-151.0,0.00022975,2]
[381695800,1756313463803,-503.6153923,0.00022975,2]
[381695801,1756313463812,-195.18637789,0.00022975,2]
[381695802,1756313463822,-183.9151083,0.00022975,2]
[381695803,1756313463834,-151.94225115,0.00022975,2]
[381695804,1756313463843,-282.26544843,0.00022975,2]
[381695805,1756313463853,-151.0,0.00022975,2]
[381695806,1756313463863,-995.0,0.00022975,2]
[381695807,1756313463872,-2005.00137845,0.00023,2]
[381695808,1756313463882,-160.0,0.00023,3]
[381695809,1756313463895,-197.0,0.00023,7]
[381695810,1756313463907,-160.0,0.00023,2]
[381695811,1756313463916,-41993.85111242,0.0002301,5]
[381695812,1756313463926,-202.85787161,0.00023012,2]
[381695813,1756313463936,-480.0,0.00023013,2]
[381695814,1756313463946,-480.0,0.00023013,2]
[381695815,1756313463955,-480.0,0.00023013,2]
[381695816,1756313463966,-480.0,0.00023013,2]
[381695817,1756313463984,-709.16,0.00023013,2]
[381695818,1756313463994,-480.0,0.00023013,2]
[381695819,1756313464003,-480.0,0.00023013,2]
[381695820,1756313464013,-480.0,0.00023013,2]
[381695821,1756313464023,-480.0,0.00023013,2]
[381695822,1756313464032,-991.33,0.00023013,2]
[381695823,1756313464042,-480.0,0.00023013,2]
[381695824,1756313464051,-480.0,0.00023013,2]
[381695825,1756313464060,-480.0,0.00023013,2]
[381695826,1756313464070,-332.08038603,0.00023013,2]
[381695827,1756313464079,-480.0,0.00023013,2]
[381695828,1756313464089,-480.0,0.00023013,2]
[381695829,1756313464098,-480.0,0.00023013,2]
[381695830,1756313464108,-480.0,0.00023013,2]
[381695831,1756313464117,-480.0,0.00023013,2]
[381695832,1756313464128,-536.38,0.00023013,2]
[381695833,1756313464138,-632.55,0.00023013,2]
[381695834,1756313464149,-480.0,0.00023013,2]
[381695835,1756313464158,-480.0,0.00023013,2]
[381695836,1756313464168,-480.0,0.00023013,2]
[381695837,1756313464177,-603.78,0.00023013,2]
[381695838,1756313464187,-480.0,0.00023013,2]
[381695839,1756313464197,-151.0,0.00023013,7]
[381695840,1756313464207,-151.0,0.00023013,7]
[381695841,1756313464217,-534.98,0.00023013,2]
[381695842,1756313464226,-480.0,0.00023013,2]
[381695843,1756313464236,-480.0,0.00023013,2]
[381695844,1756313464246,-480.0,0.00023013,2]
[381695845,1756313464256,-974.24,0.00023013,2]
[381695846,1756313464266,-480.0,0.00023013,2]
[381695847,1756313464276,-480.0,0.00023013,2]
[381695848,1756313464285,-480.0,0.00023013,2]
[381695849,1756313464443,-733.01,0.00023013,2]
[381695850,1756313464454,-480.0,0.00023013,2]
[381695851,1756313464464,-480.0,0.00023013,2]
[381695852,1756313464474,-480.0,0.00023013,2]
[381695853,1756313464484,-480.0,0.00023013,2]
[381695854,1756313464494,-480.0,0.00023013,2]
[381695855,1756313464503,-480.0,0.00023013,2]
[381695856,1756313464514,-563.95,0.00023013,2]
[381695857,1756313464524,-480.0,0.00023013,2]
[381695858,1756313464533,-480.0,0.00023013,2]
[381695859,1756313464543,-487.23,0.00023013,2]
[381695860,1756313464553,-480.0,0.00023013,2]
[381695861,1756313464562,-151.0,0.00023013,7]
[381695862,1756313464572,-480.0,0.00023013,2]
[381695863,1756313464586,-480.0,0.00023013,2]
[381695864,1756313464598,-480.0,0.00023013,2]
[381695865,1756313464608,-480.0,0.00023013,2]
[381695866,1756313464618,-554.46,0.00023013,2]
[381695867,1756313464627,-770.13,0.00023013,2]
[381695868,1756313464637,-480.0,0.00023013,2]
[381695869,1756313464647,-480.0,0.00023013,2]
[381695870,1756313464656,-225.35172686,0.00023013,2]
[381695871,1756313464666,-183.439541,0.00023013,7]
[381695872,1756313464675,-480.0,0.00023013,2]
[381695873,1756313464685,-480.0,0.00023013,2]
[381695874,1756313464694,-480.0,0.00023013,2]
[381695875,1756313464704,-599.4,0.00023013,2]
[381695876,1756313464713,-546.31,0.00023013,2]
[381695877,1756313464723,-735.4,0.00023013,2]
[381695878,1756313464733,-480.0,0.00023013,2]
[381695879,1756313464742,-151.0,0.00023013,7]
[381695880,1756313464752,-480.0,0.00023013,2]
[381695881,1756313464761,-480.0,0.00023013,2]
[381695882,1756313464771,-458.68521717,0.00023013,2]
[381695883,1756313464780,-792.01,0.00023013,2]
[381695884,1756313464790,-480.0,0.00023013,2]
[381695885,1756313464801,-480.0,0.00023013,2]
[381695886,1756313464816,-856.53,0.00023013,2]
[381695887,1756313464826,-582.09,0.00023013,2]
[381695888,1756313464839,-480.0,0.00023013,2]
[381695889,1756313464849,-480.0,0.00023013,2]
[381695890,1756313464858,-480.0,0.00023013,2]
[381695891,1756313464868,-218.104842,0.00023013,7]
[381695892,1756313464880,-480.0,0.00023013,2]
[381695893,1756313464889,-218.104842,0.00023013,7]
[381695894,1756313464899,-218.104842,0.00023013,7]
[381695895,1756313464909,-480.0,0.00023013,2]
[381695896,1756313464919,-218.104834,0.00023013,7]
[381695897,1756313464929,-668.99,0.00023013,2]
[381695898,1756313464939,-480.0,0.00023013,2]
[381695899,1756313464949,-170.40887,0.00023013,7]
[381695900,1756313464960,-520.07,0.00023013,2]
[381695901,1756313464970,-480.0,0.00023013,2]
[381695902,1756313464979,-480.0,0.00023013,2]
[381695903,1756313464989,-480.0,0.00023013,2]
[381695904,1756313464999,-151.0,0.00023013,7]
[381695905,1756313465010,-151.0,0.00023013,7]
[381695906,1756313465026,-726.72,0.00023013,2]
[381695907,1756313465035,-480.0,0.00023013,2]
[381695908,1756313465045,-480.0,0.00023013,2]
[381695909,1756313465055,-897.01,0.00023013,2]
[381695910,1756313465064,-480.0,0.00023013,2]
[381695911,1756313465074,-1193.64,0.00023013,2]
[381695912,1756313465083,-480.0,0.00023013,2]
[381695913,1756313465093,-480.0,0.00023013,2]
[381695914,1756313465103,-632.98,0.00023013,2]
[381695915,1756313465113,-480.0,0.00023013,2]
[381695916,1756313465122,-480.0,0.00023013,2]
[381695917,1756313465132,-480.0,0.00023013,2]
[381695918,1756313465143,-480.0,0.00023013,2]
[381695919,1756313465153,-480.0,0.00023013,2]
[381695920,1756313465162,-480.0,0.00023013,2]
[381695921,1756313465171,-480.0,0.00023013,2]
[381695922,1756313465181,-480.0,0.00023013,2]
[381695923,1756313465192,-613.08,0.00023013,2]
[381695924,1756313465201,-518.92,0.00023013,2]
[381695925,1756313465210,-480.0,0.00023013,2]
[381695926,1756313465220,-480.0,0.00023013,2]
[381695927,1756313465231,-870.65,0.00023013,2]
[381695928,1756313465241,-1013.47,0.00023013,2]
[381695929,1756313465251,-552.92,0.00023013,2]
[381695930,1756313465260,-480.0,0.00023013,2]
[381695931,1756313465270,-617.78,0.00023013,2]
[381695932,1756313465279,-480.0,0.00023013,2]
[381695933,1756313465288,-480.0,0.00023013,2]
[381695934,1756313465298,-368.05771639,0.00023013,2]
[381695935,1756313465308,-480.0,0.00023013,2]
[381695936,1756313465317,-480.0,0.00023013,2]
[381695937,1756313465327,-480.0,0.00023013,2]
[381695938,1756313465336,-480.0,0.00023013,2]
[381695939,1756313465345,-480.0,0.00023013,2]
[381695940,1756313465355,-667.1,0.00023013,2]
[381695941,1756313465364,-480.0,0.00023013,2]
[381695942,1756313465373,-480.0,0.00023013,2]
[381695943,1756313465383,-480.0,0.00023013,2]
[381695944,1756313465394,-480.0,0.00023013,2]
[381695945,1756313465403,-238.023618,0.00023013,7]
[381695946,1756313465413,-910.5,0.00023013,2]
[381695947,1756313465427,-480.0,0.00023013,2]
[381695948,1756313465437,-1040.0,0.00023013,2]
[381695949,1756313465446,-667.47,0.00023013,2]
[381695950,1756313465456,-508.62,0.00023013,2]
[381695951,1756313465465,-480.0,0.00023013,2]
[381695952,1756313465474,-480.0,0.00023013,2]
[381695953,1756313465484,-545.64,0.00023013,2]
[381695954,1756313465493,-480.0,0.00023013,2]
[381695955,1756313465503,-480.0,0.00023013,2]
[381695956,1756313465512,-4577.59,0.00023013,2]
[381695957,1756313465522,-480.0,0.00023013,2]
[381695958,1756313465531,-729.68,0.00023013,2]
[381695959,1756313465541,-768.78,0.00023013,2]
[381695960,1756313465551,-540.52,0.00023013,2]
[381695961,1756313465560,-488.11,0.00023013,2]
[381695962,1756313465569,-407.21055558,0.00023013,2]
[381695963,1756313465579,-480.0,0.00023013,2]
[381695964,1756313465588,-639.61,0.00023013,2]
[381695965,1756313465598,-480.0,0.00023013,2]
[381695966,1756313465607,-1082.44,0.00023013,2]
[381695967,1756313465616,-480.0,0.00023013,2]
[381695968,1756313465626,-480.0,0.00023013,2]
[381695969,1756313465635,-776.74,0.00023013,2]
[381695970,1756313465650,-480.0,0.00023013,2]
[381695971,1756313465659,-480.0,0.00023013,2]
[381695972,1756313465669,-1135.97,0.00023013,2]
[381695973,1756313465678,-480.0,0.00023013,2]
[381695974,1756313465687,-3180.06,0.00023013,2]
[381695975,1756313465696,-480.0,0.00023013,2]
[381695976,1756313465705,-480.0,0.00023013,2]
[381695977,1756313465715,-1409.37,0.00023013,2]
[381695978,1756313465725,-480.0,0.00023013,2]
[381695979,1756313465735,-518.25,0.00023013,2]
[381695980,1756313465743,-943.87,0.00023013,2]
[381695981,1756313465753,-480.0,0.00023013,2]
[381695982,1756313465762,-480.0,0.00023013,2]
[381695983,1756313465772,-480.0,0.00023013,2]
[381695984,1756313465781,-480.0,0.00023013,2]
[381695985,1756313465791,-480.0,0.00023013,2]
[381695986,1756313465800,-480.0,0.00023013,2]
[381695987,1756313465809,-480.0,0.00023013,2]
[381695988,1756313465819,-1142.23,0.00023013,2]
[381695989,1756313465829,-480.0,0.00023013,2]
[381695990,1756313465841,-820.33,0.00023013,2]
[381695991,1756313465852,-485.01,0.00023013,2]
[381695992,1756313465861,-480.0,0.00023013,2]
[381695993,1756313465871,-3006.36,0.00023013,2]
[381695994,1756313465883,-480.0,0.00023013,2]
[381695995,1756313465895,-480.0,0.00023013,2]
[381695996,1756313465905,-648.0,0.00023013,2]
[381695997,1756313465914,-480.0,0.00023013,2]
[381695998,1756313465924,-480.0,0.00023013,2]
[381695999,1756313465934,-480.0,0.00023013,2]
[381696000,1756313465944,-572.76,0.00023013,2]
[381696001,1756313465953,-510.18,0.00023013,2]
[381696002,1756313465963,-480.0,0.00023013,2]
[381696003,1756313465972,-500.0,0.00023013,2]
[381696004,1756313465981,-480.0,0.00023013,2]
[381696005,1756313465991,-1306.79,0.00023013,2]
[381696006,1756313466001,-1782.73,0.00023013,2]
[381696007,1756313466010,-480.0,0.00023013,2]
[381696008,1756313466022,-480.0,0.00023013,2]
[381696009,1756313466031,-480.0,0.00023013,2]
[381696010,1756313466040,-480.0,0.00023013,2]
[381696011,1756313466058,-553.87,0.00023013,2]
[381696012,1756313466073,-480.0,0.00023013,2]
[381696013,1756313466086,-480.0,0.00023013,2]
[381696014,1756313466098,-480.0,0.00023013,2]
[381696015,1756313466112,-480.0,0.00023013,2]
[381696016,1756313466126,-480.0,0.00023013,2]
[381696017,1756313466142,-1351.91,0.00023013,2]
[381696018,1756313466155,-480.0,0.00023013,2]
[381696019,1756313466169,-480.0,0.00023013,2]
[381696020,1756313466184,-691.46,0.00023013,2]
[381696021,1756313466198,-555.51,0.00023013,2]
[381696022,1756313466211,-480.0,0.00023013,2]
[381696023,1756313466224,-480.0,0.00023013,2]
[381696024,1756313466239,-942.74,0.00023013,2]
[381696025,1756313466253,-480.0,0.00023013,2]
[381696026,1756313466264,-801.66,0.00023013,2]
[381696027,1756313466275,-480.0,0.00023013,2]
[381696028,1756313466288,-480.0,0.00023013,2]
[381696029,1756313466302,-606.25,0.00023013,2]
[381696030,1756313466316,-480.0,0.00023013,2]
[381696031,1756313466328,-480.0,0.00023013,2]
[381696032,1756313466344,-480.0,0.00023013,2]
[381696033,1756313466358,-480.0,0.00023013,2]
[381696034,1756313466371,-480.0,0.00023013,2]
[381696035,1756313466383,-561.03,0.00023013,2]
[381696036,1756313466393,-480.0,0.00023013,2]
[381696037,1756313466406,-480.0,0.00023013,2]
[381696038,1756313466421,-480.0,0.00023013,2]
[381696039,1756313466434,-480.0,0.00023013,2]
[381696040,1756313466445,-472.72840949,0.00023013,2]
[381696041,1756313466457,-480.0,0.00023013,2]
[381696042,1756313466470,-480.0,0.00023013,2]
[381696043,1756313466482,-490.67,0.00023013,2]
[381696044,1756313466493,-1300.42,0.00023013,2]
[381696045,1756313466505,-480.0,0.00023013,2]
[381696046,1756313466516,-480.0,0.00023013,2]
[381696047,1756313466527,-2714.37,0.00023013,2]
[381696048,1756313466539,-480.0,0.00023013,2]
[381696049,1756313466550,-480.0,0.00023013,2]
[381696050,1756313466562,-480.0,0.00023013,2]
[381696051,1756313466574,-480.0,0.00023013,2]
[381696052,1756313466586,-3579.85,0.00023013,2]
[381696053,1756313466598,-1480.0,0.00023013,2]
[381696054,1756313466610,-761.62,0.00023013,2]
[381696055,1756313466622,-480.0,0.00023013,2]
[381696056,1756313466633,-480.0,0.00023013,2]
[381696057,1756313466647,-480.0,0.00023013,2]
[381696058,1756313466658,-480.0,0.00023013,2]
[381696059,1756313466670,-480.0,0.00023013,2]
[381696060,1756313466683,-3555.16,0.00023013,2]
[381696061,1756313466696,-1368.71,0.00023013,2]
[381696062,1756313466708,-480.0,0.00023013,2]
[381696063,1756313466720,-480.0,0.00023013,2]
[381696064,1756313466732,-485.11,0.00023013,2]
[381696065,1756313466744,-480.0,0.00023013,2]
[381696066,1756313466756,-1400.1,0.00023013,2]
[381696067,1756313466768,-480.0,0.00023013,2]
[381696068,1756313466779,-480.0,0.00023013,2]
[381696069,1756313466791,-4630.12,0.00023013,2]
[381696070,1756313466803,-480.0,0.00023013,2]
[381696071,1756313466815,-1952.13,0.00023013,2]
[381696072,1756313466827,-787.5,0.00023013,2]
[381696073,1756313466845,-480.0,0.00023013,2]
[381696074,1756313466857,-480.0,0.00023013,2]
[381696075,1756313466869,-968.46,0.00023013,2]
[381696076,1756313466883,-480.0,0.00023013,2]
[381696077,1756313466897,-480.0,0.00023013,2]
[381696078,1756313466909,-580.60455557,0.00023013,2]
[381696079,1756313466922,-480.0,0.00023013,2]
[381696080,1756313466935,-480.0,0.00023013,2]
[381696081,1756313466948,-480.0,0.00023013,2]
[381696082,1756313466960,-570.55,0.00023013,2]
[381696083,1756313466972,-480.0,0.00023013,2]
[381696084,1756313466985,-1129.3,0.00023013,2]
[381696085,1756313466997,-480.0,0.00023013,2]
[381696086,1756313467010,-480.0,0.00023013,2]
[381696087,1756313467022,-800.37,0.00023013,2]
[381696088,1756313467035,-671.62,0.00023013,2]
[381696089,1756313467047,-480.0,0.00023013,2]
[381696090,1756313467059,-488.79,0.00023013,2]
[381696091,1756313467070,-2344.41,0.00023013,2]
[381696092,1756313467083,-609.12,0.00023013,2]
[381696093,1756313467096,-1078.0,0.00023013,2]
[381696094,1756313467112,-657.45,0.00023013,2]
[381696095,1756313467123,-480.0,0.00023013,2]
[381696096,1756313467135,-480.0,0.00023013,2]
[381696097,1756313467147,-292.57100008,0.00023013,2]
[381696098,1756313467159,-480.0,0.00023013,2]
[381696099,1756313467172,-2006.36,0.00023013,2]
[381696100,1756313467184,-1281.87,0.00023013,2]
[381696101,1756313467196,-480.0,0.00023013,2]
[381696102,1756313467208,-520.08,0.00023013,2]
[381696103,1756313467220,-480.0,0.00023013,2]
[381696104,1756313467233,-897.97,0.00023013,2]
[381696105,1756313467245,-480.0,0.00023013,2]
[381696106,1756313467257,-3282.83,0.00023013,2]
[381696107,1756313467268,-606.35,0.00023013,2]
[381696108,1756313467280,-480.0,0.00023013,2]
[381696109,1756313467295,-1138.79,0.00023013,2]
[381696110,1756313467307,-620.8,0.00023013,2]
[381696111,1756313467319,-1071.53,0.00023013,2]
[381696112,1756313467331,-992.77,0.00023013,2]
[381696113,1756313467343,-480.0,0.00023013,2]
[381696114,1756313467355,-480.0,0.00023013,2]
[381696115,1756313467368,-480.0,0.00023013,2]
[381696116,1756313467379,-2059.76,0.00023013,2]
[381696117,1756313467392,-609.48,0.00023013,2]
[381696118,1756313467403,-480.0,0.00023013,2]
[381696119,1756313467415,-922.42420878,0.00023013,2]
[381696120,1756313467985,-73.58579122,0.00023013,2]
[381696121,1756313468004,-480.0,0.00023013,2]
[381696122,1756313468017,-480.0,0.00023013,2]
[381696123,1756313468026,-480.0,0.00023013,2]
[381696124,1756313468036,-480.0,0.00023013,2]
[381696125,1756313468045,-970.02,0.00023013,2]
[381696126,1756313468054,-480.0,0.00023013,2]
[381696127,1756313468064,-480.0,0.00023013,2]
[381696128,1756313468073,-480.0,0.00023013,2]
[381696129,1756313468083,-406.61907584,0.00023013,2]
[381696130,1756313468098,-127.93092416,0.00023013,2]
[381696131,1756313468107,-231.08272537,0.00023013,2]
[381696132,1756313468119,-248.91727463,0.00023013,2]
[381696133,1756313468129,-629.0,0.00023013,2]
[381696134,1756313468139,-604.1,0.00023013,2]
[381696135,1756313468149,-480.0,0.00023013,2]
[381696136,1756313468158,-528.45,0.00023013,2]
[381696137,1756313468168,-518.73,0.00023013,2]
[381696138,1756313468178,-1155.19,0.00023013,2]
[381696139,1756313468188,-480.0,0.00023013,2]
[381696140,1756313468198,-422.42536301,0.00023013,2]
[381696141,1756313468951,-480.0,0.00021917,2]
[381696142,1756313468962,-480.0,0.00022191,2]
[381696143,1756313468972,-480.0,0.00022465,2]
[381696144,1756313468981,-480.0,0.00022465,2]
[381696145,1756313468992,-480.0,0.00022739,2]
[381696146,1756313469001,-304.34169625,0.00022739,2]
[381696147,1756313469221,832.69,0.0002011,2]
[381697435,1756313546231,905.98672988,0.000199,2]
[381697442,1756313722918,875.78717243,0.000199,2]
[381697465,1756313897268,846.59426646,0.000199,2]
[381697472,1756314073612,818.37445781,0.000199,2]
[381697489,1756314241255,791.2974039,0.0001947,2]
[381697490,1756314241705,312.239426,0.00013699,2]
[381697492,1756314247811,791.09530911,0.000199,2]
[381697500,1756314411132,-273.66708451,0.00020187,2]
[381697501,1756314423600,764.72546556,0.000199,2]
[381697519,1756314600652,170.71675772,0.000199,2]
[381697520,1756314600679,568.51785893,0.000199,2]
[381697551,1756314632650,-38.57234149,0.00020187,2]
[381697553,1756314632660,-196.95894833,0.00020187,2]
[381697555,1756314632669,-172.61032893,0.00020361,2]
[381697557,1756314632678,-228.02208226,0.0002044,2]
[381697559,1756314632688,-893.22,0.00020461,3]
[381697561,1756314632697,-252.99603131,0.00020461,3]
[381697564,1756314632720,-193.61396869,0.00020461,3]
[381697566,1756314632729,-223.3,0.00020461,3]
[381697568,1756314632740,-669.93,0.00020461,3]
[381697571,1756314632750,-161.007692,0.00020461,2]
[381697573,1756314632759,-300.0,0.00020466,2]
[381697575,1756314632769,-1200.0,0.00020469,2]
[381697577,1756314632778,-500.0,0.0002047,2]
[381697579,1756314632788,-500.0,0.0002047,2]
[381697581,1756314632797,-282.96083366,0.0002047,2]
[381697584,1756314632807,-500.0,0.0002047,2]
[381697586,1756314632817,-500.0,0.0002047,2]
[381697589,1756314632826,-201.72498342,0.0002047,2]
[381697592,1756314632835,-500.0,0.0002047,2]
[381697594,1756314632845,-183.05836831,0.0002047,2]
[381697596,1756314632854,-238.87797958,0.00020471,2]
[381697598,1756314632867,-166025.61600092,0.00020471,2]
[381697600,1756314632876,-2978.66054516,0.00021373,2]
[381697602,1756314632887,-150.0,0.00021472,2]
[381697604,1756314632896,-93707.11777837,0.00021472,2]
[381697750,1756314643799,-106600.0,0.00021472,2]
[381697752,1756314643811,-1502.8352091,0.00021472,2]
[381697789,1756314646788,-5729.995497,0.00021472,2]
[381697790,1756314646840,-11083.3735468,0.00021472,2]
[381697791,1756314646948,-419.28094227,0.00021472,2]
[381697792,1756314646962,-37239.49462419,0.00021472,2]
[381697796,1756314777665,714.59346281,0.000199,2]
[381697797,1756314872182,160.0,0.0002,3]
[381697798,1756314872579,27.70355231,0.0002,3]
[381697799,1756314872601,132.29644769,0.0002,3]
[381697800,1756314920935,3019.08,0.0002011,2]
[381697801,1756314951818,690.77368061,0.000199,2]
[381697802,1756315127053,1178.28701155,0.000199,2]
[381697803,1756315176531,160.0,0.0002,3]
[381697805,1756315198008,281.015483,0.00013699,2]
[381697811,1756315301176,1139.01077788,0.000199,2]
[381697813,1756315478773,1210.98370035,0.000199,2]
[381697819,1756315609134,-161.007692,0.00020176,2]
[381697820,1756315609159,-72.29648038,0.00020187,2]
[381697821,1756315626842,483.29232403,0.0002011,7]
[381697822,1756315655783,1230.42545574,0.000199,2]
[381697833,1756315831059,187.99820333,0.00030907,60]
[381697875,1756315831830,-208.71900262,0.00020187,2]
[381697877,1756315831839,-250.0,0.00020922,2]
[381697879,1756315831848,-309.0,0.00021,2]
[381697881,1756315831858,-1200.0,0.0002109,2]
[381697883,1756315831867,-1200.0,0.0002109,2]
[381697885,1756315831876,-300.0,0.00021091,2]
[381697887,1756315831886,-300.0,0.00021091,2]
[381697889,1756315831895,-300.0,0.00021091,2]
[381697891,1756315831905,-300.0,0.00021091,2]
[381697894,1756315831914,-239.0,0.00021091,2]
[381697897,1756315831924,-1282.26,0.00021092,3]
[381697899,1756315831932,-641.13,0.00021092,3]
[381697903,1756315831942,-213.71,0.00021092,3]
[381697906,1756315831951,-641.17,0.00021092,3]
[381697909,1756315831961,-291.85,0.00021092,10]
[381697912,1756315831970,-432.82319132,0.00021099,2]
[381697915,1756315831979,-155.93876982,0.00021099,2]
[381697918,1756315831988,-181.71323743,0.00021099,2]
[381697920,1756315831998,-549.77783441,0.00021099,2]
[381697922,1756315832007,-500.0,0.00021099,2]
[381697924,1756315832016,-500.0,0.00021099,2]
[381697926,1756315832027,-151.0,0.000211,3]
[381697928,1756315832036,-7310.17119548,0.000211,2]
[381698103,1756315837778,474.84511915,0.000199,2]
[381698104,1756315837803,714.56615479,0.000199,2]
[381698105,1756315837828,-9326.37505962,0.000211,2]
[381698106,1756315837838,-3471.0269165,0.000211,2]
[381698107,1756315837847,-500.0,0.00021101,2]
[381698108,1756315837856,-598.07258356,0.00021101,2]
[381698109,1756315837865,-500.0,0.00021101,2]
[381698110,1756315837876,-500.0,0.00021101,2]
[381698111,1756315837885,-481.29085554,0.00021101,2]
[381698112,1756315837894,-53498.224681,0.00021102,2]
[381698113,1756315837903,-92691.0803558,0.00021102,2]
[381698114,1756315837913,-151.0,0.000212,3]
[381698115,1756315837922,-3082.7781087,0.000212,2]
[381698116,1756315837932,-200.0,0.00021263,10]
[381698117,1756315837942,-200.0,0.00021263,10]
[381698118,1756315837951,-200.0,0.00021263,10]
[381698119,1756315837961,-200.0,0.00021263,10]
[381698120,1756315837971,-200.0,0.00021263,10]
[381698121,1756315837981,-200.0,0.00021263,10]
[381698122,1756315837995,-200.0,0.00021263,10]
[381698123,1756315838005,-200.0,0.00021263,10]
[381698124,1756315838014,-200.0,0.00021263,10]
[381698125,1756315838024,-200.0,0.00021263,10]
[381698126,1756315838033,-200.0,0.00021263,10]
[381698127,1756315838043,-200.0,0.00021263,10]
[381698128,1756315838052,-200.0,0.00021263,10]
[381698129,1756315838061,-200.0,0.00021263,10]
[381698130,1756315838071,-200.0,0.00021263,10]
[381698131,1756315838080,-200.0,0.00021263,10]
[381698132,1756315838091,-243.388394,0.00021263,10]
[381698133,1756315838101,-100000.0,0.00021263,2]
[381698134,1756315838112,-151.0,0.000213,4]
[381698135,1756315838127,-151.0,0.000213,4]
[381698136,1756315838137,-500.0,0.000213,4]
[381698137,1756315838146,-2825.92276709,0.00021323,2]
[381698138,1756315838156,-3082.77810866,0.0002135,2]
[381698139,1756315838166,-459.64861499,0.00021359,2]
[381698140,1756315838175,-928.59741136,0.00021372,2]
[381698141,1756315838185,-370000.0,0.00021372,2]
[381698142,1756315838194,-500.0,0.00021373,2]
[381698143,1756315838204,-500.0,0.00021373,2]
[381698144,1756315838213,-500.0,0.00021373,2]
[381698145,1756315838223,-500.0,0.00021373,2]
[381698146,1756315838232,-500.0,0.00021373,2]
[381698147,1756315838242,-400.17194902,0.00021373,2]
[381698148,1756315838251,-607.94876841,0.00021373,2]
[381698149,1756315838261,-500.0,0.00021373,2]
[381698150,1756315838270,-500.0,0.00021373,2]
[381698151,1756315838281,-529.15628133,0.00021373,2]